bitfinex-derivatives/quotes_ETHF0:USTF0_20260208
["timestamp","ask_amount","ask_price","bid_price","bid_amount"]
[1770530872129,0.00526884,2079.2,2078.1,5.9793644]
[1770530874034,5.72642009,2079.2,2078.1,5.9793644]
[1770530874421,5.72115125,2079.1,2077.4,5.9793644]
[1770530880341,5.72115125,2079.1,2077.6,5.9793644]
[1770530884547,5.72115125,2079.1,2077.6,8.82772353]
[1770530884850,5.72115125,2079.1,2077.7,5.9793644]
[1770530885445,5.72115125,2079.1,2077.8,5.9793644]
[1770530886242,5.58787538,2079.0,2077.9,6.03808694]
[1770530887448,5.58787538,2079.0,2078.0,6.03808694]
[1770530888650,5.58787538,2079.0,2078.1,6.03808694]
[1770530892545,5.58787538,2078.9,2078.1,6.03808694]
[1770530896445,51.85328837,2079.1,2078.2,5.62166771]
[1770530896747,0.00526884,2079.2,2078.4,5.62166771]
[1770530896942,0.00526884,2079.2,2078.4,8.47002684]
[1770530897141,0.00040238,2079.2,2078.5,5.62166771]
[1770530899547,0.00040238,2079.2,2078.5,8.47002684]
[1770530899748,0.00040238,2079.2,2078.6,5.62166771]
[1770530899952,2.84091785,2079.5,2078.6,5.62166771]
[1770530900145,5.91354146,2079.7,2078.8,5.62166771]
[1770530900542,5.91354146,2079.7,2078.9,5.62166771]
[1770530900949,5.91712117,2079.7,2078.9,5.62699488]
[1770530912158,5.91712117,2079.7,2079.0,5.62166771]
[1770530912363,0.00357971,2079.7,2079.0,5.62166771]
[1770530913159,5.91712117,2079.7,2079.0,5.62166771]
[1770530925566,0.00357971,2079.7,2079.0,5.62166771]
[1770530925861,5.62160255,2079.7,2079.0,5.62166771]
[1770530926271,5.62160255,2079.7,2079.1,5.35390884]
[1770530929269,8.4625204,2079.7,2079.1,5.35390884]
[1770530929971,5.61802284,2079.6,2079.1,5.35390884]
[1770530933170,5.61802284,2079.6,2079.0,8.20226797]
[1770530933372,5.61802284,2079.6,2079.1,5.35390884]
[1770530940379,2.84449756,2079.7,2079.1,5.35390884]
[1770530940579,0.87331252,2079.8,2079.3,5.35390884]
[1770530940777,43.09882906,2080.0,2079.4,5.35390884]
[1770530941176,48.7168519,2080.0,2079.4,5.35390884]
[1770530941378,5.61802284,2080.0,2079.4,5.35390884]
[1770530941580,5.62160214,2080.0,2079.4,5.35390884]
[1770530944080,5.62160214,2080.0,2079.6,5.35390884]
[1770530944677,0.0035793,2080.0,2079.6,5.35390884]
[1770530945174,5.62160214,2080.0,2079.6,5.35390884]
[1770530947081,5.62160214,2080.0,2079.5,5.51200666]
[1770530947382,5.62160214,2080.0,2079.3,5.51200666]
[1770530949780,0.0035793,2080.0,2079.3,8.36036579]
[1770530949983,0.0035793,2080.0,2079.4,8.36036579]
[1770530950176,0.0035793,2080.0,2079.5,5.51200666]
[1770530951585,5.25090436,2080.2,2079.5,5.51200666]
[1770530952375,5.25525844,2080.2,2079.5,5.51200666]
[1770530953884,5.25525844,2080.2,2079.6,5.1501927]
[1770530954184,0.00435408,2080.2,2079.6,5.1501927]
[1770530954379,5.23643202,2080.5,2079.7,5.1501927]
[1770530955387,5.24265991,2080.5,2079.7,5.1501927]
[1770530955587,5.24265991,2080.5,2079.6,5.1501927]
[1770530958888,5.24265991,2080.5,2079.4,7.99855183]
[1770530959089,5.24265991,2080.5,2079.5,5.1501927]
[1770530959785,5.24265991,2080.5,2079.6,5.1501927]
[1770530961694,5.24265991,2080.5,2079.7,5.1501927]
[1770530967192,5.24265991,2080.5,2079.8,5.1501927]
[1770530968697,0.00622789,2080.5,2079.9,8.02587254]
[1770530968995,5.24265991,2080.5,2080.0,5.1501927]
[1770530971496,43.09882906,2080.9,2080.0,5.1501927]
[1770530971497,5.23643202,2080.7,2080.1,5.1501927]
[1770530971994,5.23643202,2080.8,2080.1,5.1501927]
[1770530972196,5.23643202,2081.0,2080.1,5.1501927]
[1770530972386,5.24179736,2081.0,2080.1,5.1501927]
[1770530972589,5.24179736,2081.0,2080.2,5.1501927]
[1770530972800,5.24179736,2081.0,2080.2,5.50720476]
[1770530975102,5.24179736,2081.0,2080.3,5.1501927]
[1770530976098,5.24179736,2081.0,2080.2,8.18311674]
[1770530976299,5.24179736,2081.0,2080.2,5.3074369]
[1770530976502,5.24179736,2081.0,2080.0,8.18311674]
[1770530978498,5.24179736,2081.0,2080.1,5.3074369]
[1770530986304,5.48352859,2080.9,2080.1,5.3074369]
[1770530986504,5.48352859,2080.7,2080.1,5.3074369]
[1770530989805,5.75187588,2081.0,2080.1,5.3074369]
[1770530989806,43.1041944,2081.0,2080.1,5.3074369]
[1770530990105,0.00536534,2081.0,2080.5,5.3074369]
[1770530990312,0.00536534,2081.0,2080.5,5.31167817]
[1770530990707,5.48889393,2081.0,2080.5,5.31167817]
[1770530991814,5.48889393,2081.0,2080.5,0.00424127]
[1770530992507,5.48889393,2081.0,2080.2,5.3074369]
[1770530992508,5.48352859,2080.9,2080.2,5.3074369]
[1770530993310,5.48352859,2080.9,2080.2,5.31341791]
[1770530994412,5.48352859,2080.9,2080.4,5.3074369]
[1770530999416,0.00536534,2081.0,2080.4,5.3074369]
[1770530999626,5.48889393,2081.0,2080.4,5.3074369]
[1770530999919,5.48889393,2081.0,2080.4,8.18229924]
[1770531000110,5.48889393,2081.0,2080.4,5.3074369]
[1770531000312,5.48889393,2081.0,2080.4,8.18229924]
[1770531000820,0.00536534,2081.0,2080.4,8.18229924]
[1770531001021,0.00536534,2081.0,2080.5,5.3074369]
[1770531001220,5.48889393,2081.0,2080.5,5.3074369]
[1770531001614,0.00536534,2081.0,2080.5,5.3074369]
[1770531001921,5.48889393,2081.0,2080.5,5.3074369]
[1770531002317,0.00536534,2081.0,2080.5,5.3074369]
[1770531002923,5.48889393,2081.0,2080.5,5.3074369]
[1770531008033,0.00536534,2081.0,2080.5,5.3074369]
[1770531008231,0.00536534,2081.0,2080.7,4.92330801]
[1770531008532,2.90676527,2081.1,2080.7,4.92330801]
[1770531009532,2.91058421,2081.1,2080.7,4.92330801]
[1770531014134,4.74852131,2081.1,2080.7,4.92330801]
[1770531016834,0.00381894,2081.1,2080.7,4.92330801]
[1770531018034,4.74852131,2081.1,2080.7,4.92330801]
[1770531025636,4.74852131,2081.1,2080.6,2.87486234]
[1770531025637,4.74852131,2081.1,2080.6,8.07647039]
[1770531026536,4.74852131,2081.1,2080.7,5.20160805]
[1770531044755,4.74852131,2081.1,2080.6,2.87486234]
[1770531044952,4.74852131,2081.1,2080.3,2.87486234]
[1770531044953,4.83304158,2080.8,2080.3,2.87486234]
[1770531045162,4.83304158,2080.8,2080.3,8.0266475]
[1770531047466,4.83304158,2080.8,2080.4,5.15178516]
[1770531048765,4.83304158,2080.9,2080.4,5.15178516]
[1770531055075,4.83304158,2080.8,2080.4,5.15178516]
[1770531060983,4.83304158,2080.9,2080.4,5.15178516]
[1770531061178,4.83686052,2081.1,2080.4,5.15178516]
[1770531061482,0.00381894,2081.1,2080.6,5.15178516]
[1770531063583,4.83686052,2081.1,2080.6,5.15178516]
[1770531076599,4.83686052,2081.1,2080.5,5.12403362]
[1770531077198,7.7016993,2081.1,2080.4,5.12403362]
[1770531077401,4.7977104,2080.9,2080.4,5.12403362]
[1770531077589,4.7977104,2080.9,2080.3,5.12403362]
[1770531085408,4.7977104,2080.9,2080.2,5.13001463]
[1770531086408,4.7977104,2080.8,2080.2,5.13001463]
[1770531090405,4.7977104,2080.8,2080.2,0.00598101]
[1770531090406,7.66254918,2080.8,2080.2,0.00598101]
[1770531090606,4.7977104,2080.7,2080.2,0.00598101]
[1770531092822,4.7977104,2080.7,2080.1,5.12403362]
[1770531093713,4.7977104,2080.7,2080.1,5.12762657]
[1770531107329,7.66192195,2080.7,2080.1,5.12762657]
[1770531112238,2.86421155,2080.7,2080.1,5.12762657]
[1770531112540,7.58197871,2080.8,2080.2,4.88471352]
[1770531115139,4.71776716,2080.7,2080.2,4.88471352]
[1770531115438,4.71776716,2080.6,2080.2,4.88471352]
[1770531116239,2.86421155,2080.7,2080.2,4.88471352]
[1770531116240,7.58197871,2080.7,2080.2,4.88471352]
[1770531118144,4.71776716,2080.7,2080.2,4.88471352]
[1770531118345,7.58916023,2080.7,2080.2,4.88471352]
[1770531120436,2.87139307,2080.7,2080.2,4.88471352]
[1770531120636,7.18695711,2081.1,2080.2,4.88471352]
[1770531120637,42.940518,2081.1,2080.5,3.39699241]
[1770531120842,0.00381894,2081.1,2080.5,3.39699241]
[1770531121042,0.00381894,2081.1,2080.7,3.39699241]
[1770531123147,4.71776716,2081.4,2080.7,3.39699241]
[1770531124150,4.72349226,2081.4,2080.7,3.39699241]
[1770531125551,0.0057251,2081.4,2080.9,3.51507026]
[1770531125745,4.34000051,2081.8,2080.9,3.51507026]
[1770531126848,4.34349107,2081.8,2080.9,3.51507026]
[1770531127050,4.34349107,2081.8,2080.7,2.88406494]
[1770531127247,4.34000051,2081.6,2080.6,3.48067259]
[1770531144067,4.34000051,2081.6,2080.7,3.44225414]
[1770531148375,4.49519149,2081.5,2080.7,6.32631908]
[1770531148668,4.49519149,2081.5,2080.8,3.45366752]
[1770531150569,4.49519149,2081.4,2080.8,3.45366752]
[1770531151174,4.49519149,2081.4,2080.8,6.33773246]
[1770531152068,47.59906975,2081.4,2080.7,2.88406494]
[1770531152271,4.49519149,2081.3,2080.7,2.88406494]
[1770531154768,4.49519149,2081.3,2080.7,6.34172427]
[1770531157472,4.49519149,2081.3,2080.7,2.88406494]
[1770531157878,4.41875668,2081.2,2080.7,2.88406494]
[1770531158174,4.41875668,2081.2,2080.6,10.65348955]
[1770531158368,4.41875668,2081.2,2080.7,2.88406494]
[1770531159172,4.41875668,2081.2,2080.6,10.65348955]
[1770531161080,4.41875668,2081.2,2080.6,6.33600414]
[1770531163882,4.41875668,2081.3,2080.7,3.41965847]
[1770531164082,4.41875668,2081.3,2080.8,3.41965847]
[1770531165087,47.52263494,2081.4,2080.8,3.41965847]
[1770531170696,4.41875668,2081.3,2080.8,3.41965847]
[1770531179899,43.10387826,2081.4,2080.8,3.41965847]
[1770531180101,4.41875668,2081.6,2081.2,3.41094464]
[1770531180799,4.41875668,2081.6,2081.3,3.41025546]
[1770531181102,4.41875668,2081.6,2081.2,3.41025546]
[1770531181698,4.41875668,2081.5,2080.9,2.88083144]
[1770531181904,4.41875668,2081.4,2080.8,2.88083144]
[1770531182204,4.41875668,2081.4,2080.8,3.40239171]
[1770531182205,4.41875668,2081.3,2080.8,3.40239171]
[1770531182905,2.87215271,2081.4,2080.8,3.40239171]
[1770531183106,7.29090939,2081.4,2080.8,3.40239171]
[1770531183306,4.41875668,2081.3,2080.8,3.40239171]
[1770531186906,2.87215271,2081.5,2080.9,3.40207651]
[1770531187101,7.03299324,2081.6,2081.0,3.40207651]
[1770531187912,4.16084053,2081.5,2081.0,3.40207651]
[1770531188614,4.16084053,2081.6,2081.0,3.40207651]
[1770531191916,4.16433109,2081.8,2081.3,3.38765374]
[1770531193306,4.30532272,2081.6,2080.8,2.88083144]
[1770531193510,7.17747543,2081.6,2080.8,2.88083144]
[1770531193813,4.30532272,2081.5,2080.8,6.25280317]
[1770531194013,4.30532272,2081.5,2080.9,3.37197173]
[1770531196521,4.30532272,2081.6,2080.9,3.37197173]
[1770531196720,4.30532272,2081.6,2081.0,3.3658196]
[1770531207320,4.30532272,2081.6,2080.9,2.87688083]
[1770531207525,4.30532272,2081.5,2080.8,2.87688083]
[1770531209633,4.30532272,2081.4,2080.7,6.01485102]
[1770531212527,4.30532272,2081.4,2080.6,4.31748541]
[1770531212528,4.30532272,2081.3,2080.6,5.9695628]
[1770531217836,4.30532272,2081.3,2080.7,3.1075361]
[1770531218734,4.30532272,2081.3,2080.6,5.98392925]
[1770531218936,4.30532272,2081.3,2080.6,2.87688083]
[1770531219935,4.30532272,2081.3,2080.6,5.9834578]
[1770531222238,4.30532272,2081.3,2080.5,7.19436624]
[1770531222435,4.30532272,2081.3,2080.5,2.87688083]
[1770531222635,4.30532272,2081.3,2080.5,5.98309512]
[1770531223234,4.4166293,2081.2,2080.5,10.30058053]
[1770531224739,4.4166293,2081.2,2080.6,3.10257667]
[1770531226940,4.60376123,2081.9,2081.1,5.74012624]
[1770531227133,19.60725179,2081.8,2081.4,2.87766563]
[1770531227445,19.60725179,2081.8,2081.3,2.89574131]
[1770531227446,4.60376123,2081.7,2081.3,2.89574131]
[1770531227844,4.60376123,2081.7,2081.4,0.01807568]
[1770531230345,15.00349056,2081.8,2081.4,0.01807568]
[1770531230346,19.63529389,2081.8,2081.4,0.01807568]
[1770531230745,4.57804364,2081.7,2081.4,0.01807568]
[1770531231248,5.01126201,2082.7,2081.4,4.31649845]
[1770531231549,18.63022243,2082.5,2082.0,0.01616424]
[1770531231736,5.0115986,2082.5,2082.0,0.01616424]
[1770531232446,5.01496523,2082.5,2082.1,0.01616424]
[1770531234848,5.01496523,2082.5,2082.0,0.08049046]
[1770531235047,18.67301191,2082.4,2082.0,0.08049046]
[1770531236351,13.59443654,2082.4,2082.0,0.08049046]
[1770531236646,5.10756907,2082.9,2082.3,2.8610345]
[1770531236844,5.10756907,2082.9,2082.4,2.8610345]
[1770531237048,5.10756907,2083.3,2082.4,2.8610345]
[1770531237446,5.10756907,2083.3,2082.5,0.01431859]
[1770531237638,13.10386654,2083.2,2082.5,0.01431859]
[1770531239651,0.00565472,2083.3,2082.6,9.41614236]
[1770531239845,5.04028277,2083.6,2082.8,0.20981279]
[1770531240143,13.10386654,2083.5,2082.8,0.20981279]
[1770531240948,13.10846027,2083.5,2082.8,0.20981279]
[1770531241249,5.10552259,2084.7,2083.3,0.09938348]
[1770531241448,5.10552259,2084.4,2083.4,0.11320964]
[1770531241842,5.1059163,2084.2,2083.4,0.11320964]
[1770531242238,5.1059163,2084.2,2083.1,0.11320964]
[1770531242239,5.1059163,2084.0,2083.1,0.11320964]
[1770531242443,5.1059163,2084.0,2083.4,0.20707032]
[1770531242639,12.59734654,2083.9,2083.4,0.20707032]
[1770531242843,5.0838398,2083.8,2083.1,0.20707032]
[1770531243042,5.0838398,2083.8,2082.8,0.20707032]
[1770531243345,5.0838398,2083.6,2082.7,0.22074726]
[1770531243745,5.08417742,2083.4,2082.7,0.22074726]
[1770531243955,5.08417742,2083.4,2082.6,0.22007203]
[1770531244250,5.08417742,2083.2,2082.6,0.22007203]
[1770531244451,5.08417742,2083.2,2082.3,0.24079416]
[1770531244650,0.00344193,2084.2,2082.4,0.24079416]
[1770531244651,5.08055532,2083.0,2082.4,0.24079416]
[1770531245155,5.08055532,2082.8,2082.4,0.24079416]
[1770531245450,17.67790186,2084.1,2082.4,0.24079416]
[1770531245653,5.08087863,2082.9,2082.4,0.24079416]
[1770531246153,12.59734654,2082.9,2082.4,0.24079416]
[1770531246356,12.59734654,2082.9,2082.1,9.24410148]
[1770531246357,5.08087863,2082.8,2082.3,0.10719372]
[1770531246550,5.08087863,2082.8,2082.3,0.09870596]
[1770531246750,5.08087863,2082.8,2082.0,0.00496004]
[1770531246751,5.17693755,2082.6,2082.1,0.09870596]
[1770531246951,5.17693755,2082.6,2082.0,0.00496004]
[1770531246952,5.17972116,2084.0,2082.4,0.09313873]
[1770531247251,5.17972116,2084.0,2082.6,0.09313873]
[1770531247446,5.18014076,2083.8,2082.6,0.09313873]
[1770531247852,5.18014076,2083.6,2082.6,0.09313873]
[1770531248044,0.00487747,2083.6,2082.8,0.1050139]
[1770531248246,12.60222401,2083.6,2082.8,0.1050139]
[1770531248942,12.60222401,2083.6,2082.6,2.8610345]
[1770531248943,0.00487747,2083.6,2083.0,0.14132869]
[1770531249148,12.60222401,2083.6,2083.0,0.14132869]
[1770531249347,5.16871743,2083.8,2083.0,0.14132869]
[1770531249558,5.17154817,2083.7,2083.0,0.14132869]
[1770531250253,0.00468604,2083.7,2083.0,0.14132869]
[1770531250451,0.00468604,2083.7,2082.8,0.24024]
[1770531250452,0.00468604,2083.7,2083.2,0.14796767]
[1770531250851,5.18216063,2084.1,2083.4,0.13448486]
[1770531251049,5.18450365,2083.9,2083.3,6.2443618]
[1770531251249,5.18450365,2083.9,2083.3,0.13448486]
[1770531251446,17.78224245,2083.8,2083.3,0.13448486]
[1770531251657,5.18489591,2083.8,2083.3,0.13448486]
[1770531251950,5.18489591,2084.1,2083.3,0.13448486]
[1770531252352,17.78224245,2084.1,2083.5,0.14189173]
[1770531252950,17.78691581,2084.1,2083.5,0.1472892]
[1770531253657,5.32436069,2084.0,2083.5,0.1472892]
[1770531254260,5.32436069,2083.8,2083.1,2.8610345]
[1770531254459,5.32436069,2083.8,2083.0,2.8610345]
[1770531254758,11.58187907,2083.7,2083.2,6.13469853]
[1770531254959,16.88741619,2084.0,2083.1,8.99573303]
[1770531255147,16.88741619,2084.0,2083.2,7.24229138]
[1770531255352,16.88741619,2084.0,2083.2,9.15535124]
[1770531255353,5.30603715,2083.9,2083.2,9.15535124]
[1770531256054,11.58187907,2083.8,2083.2,9.15535124]
[1770531256257,11.58187907,2083.8,2083.3,4.38888508]
[1770531256460,11.58187907,2083.8,2083.4,0.04817845]
[1770531256862,5.37173223,2084.0,2083.4,0.04817845]
[1770531257161,11.58187907,2083.9,2083.4,0.04817845]
[1770531258156,16.95412936,2083.9,2083.4,0.04817845]
[1770531258351,11.58187907,2083.9,2083.4,0.04817845]
[1770531258557,5.38478988,2084.1,2083.5,6.21743982]
[1770531258753,8.63187615,2085.9,2083.8,7.1530191]
[1770531258754,5.38011652,2084.6,2083.8,7.1530191]
[1770531259056,5.38011652,2084.6,2083.9,7.23602398]
[1770531259261,5.38011652,2084.6,2083.9,2.84486912]
[1770531259866,5.38464836,2084.6,2083.9,2.84486912]
[1770531260054,16.39294359,2084.5,2083.9,2.84486912]
[1770531260464,5.36052131,2084.4,2084.0,0.01997242]
[1770531261160,4.85643131,2084.4,2084.0,2.86484154]
[1770531261368,4.85643131,2084.4,2084.1,3.36893154]
[1770531261565,5.1090803,2084.2,2084.0,2.84486912]
[1770531261765,5.1090803,2084.2,2083.9,3.38022125]
[1770531261967,16.12139937,2084.2,2083.9,3.38022125]
[1770531263369,5.05993576,2084.5,2084.1,0.68118233]
[1770531263568,7.90726094,2084.5,2084.1,0.68118233]
[1770531263862,19.327,2085.4,2084.1,0.68118233]
[1770531263863,5.40651802,2085.2,2084.4,7.1530191]
[1770531264061,5.40651802,2084.7,2084.5,4.39729349]
[1770531264263,5.40651802,2085.8,2084.4,2.84486912]
[1770531264464,6.42048286,2084.7,2084.5,0.2783281]
[1770531264665,0.00582526,2084.7,2084.5,0.2783281]
[1770531265061,5.38953227,2084.7,2084.5,2.84486912]
[1770531265367,11.80418987,2084.6,2084.5,1.90086912]
[1770531266473,6.42048286,2084.7,2084.5,3.44828186]
[1770531267060,11.26941265,2084.7,2084.5,1.90086912]
[1770531267470,11.27360436,2084.7,2084.5,1.90086912]
[1770531268258,6.42467457,2084.7,2084.5,1.90086912]
[1770531268467,4.88499083,2085.5,2084.6,7.31947017]
[1770531268673,4.88499083,2085.5,2084.7,5.85439707]
[1770531268968,4.88499083,2085.5,2084.8,4.27924485]
[1770531269568,4.89067667,2085.5,2084.8,4.28462535]
[1770531270166,4.89067667,2085.5,2084.8,0.0053805]
[1770531270471,4.88776691,2085.3,2084.8,4.40561721]
[1770531270770,4.88776691,2085.3,2084.9,4.40023671]
[1770531270966,4.87653001,2085.1,2084.8,0.0053805]
[1770531271161,4.87653001,2085.1,2084.8,1.67988774]
[1770531271367,5.82933286,2085.1,2084.8,1.67988774]
[1770531271569,4.87716496,2085.4,2084.8,1.67988774]
[1770531271769,4.87716496,2085.4,2084.9,1.69101805]
[1770531273368,5.82933286,2085.3,2085.0,1.77571683]
[1770531273571,5.33789286,2085.3,2085.1,1.77571683]
[1770531273772,5.84e-06,2085.5,2085.2,4.27924485]
[1770531273975,5.84e-06,2085.5,2085.2,8.65408754]
[1770531274466,5.84e-06,2085.5,2085.3,4.37484269]
[1770531274671,5.84e-06,2085.5,2085.3,0.32566182]
[1770531274874,5.84e-06,2085.5,2085.2,4.27924485]
[1770531275379,5.84e-06,2085.5,2085.3,0.09710624]
[1770531275777,5.84e-06,2085.5,2085.4,0.10930113]
[1770531276275,5.74003999,2086.9,2085.3,4.27924485]
[1770531276578,5.83657148,2086.7,2085.9,0.08003066]
[1770531276778,9.39876665,2086.6,2085.9,0.08003066]
[1770531276980,5.83657148,2086.6,2086.0,0.08003066]
[1770531277280,3.56219517,2086.5,2086.0,0.08003066]
[1770531277481,3.56219517,2086.5,2086.1,0.10303571]
[1770531277780,3.45918122,2086.5,2086.1,0.10303571]
[1770531278171,0.00615507,2086.6,2086.1,0.10303571]
[1770531278376,3.46533629,2086.6,2086.2,0.30032353]
[1770531279381,3.46533629,2086.6,2086.3,0.30032353]
[1770531279580,3.46533629,2086.6,2086.3,0.30534701]
[1770531280275,5.75255333,2086.4,2085.7,4.51915485]
[1770531280479,9.10423901,2088.3,2086.0,2.96622185]
[1770531280480,1.55017523,2086.5,2086.0,2.96622185]
[1770531280676,5.60070917,2086.7,2086.0,2.96622185]
[1770531281483,5.60687695,2086.7,2086.0,2.97137247]
[1770531281677,5.60687695,2086.7,2086.2,3.29086381]
[1770531282082,0.00616778,2086.7,2086.2,3.29086381]
[1770531282479,5.60687695,2086.7,2086.2,3.29086381]
[1770531282679,5.60687695,2086.7,2086.0,3.38829904]
[1770531283080,5.60687695,2086.7,2086.1,9.7176462]
[1770531283784,5.60687695,2086.7,2086.2,3.41654173]
[1770531284176,0.00616778,2086.7,2086.2,3.41654173]
[1770531284377,5.60687695,2086.7,2086.2,3.41654173]
[1770531284786,5.60687695,2086.7,2086.0,0.00515062]
[1770531285882,5.60687695,2086.7,2086.0,3.74567828]
[1770531287382,5.60687695,2086.7,2086.0,0.00515062]
[1770531290091,5.60687695,2086.7,2085.4,4.27924485]
[1770531290392,5.60687695,2086.7,2085.7,3.76301817]
[1770531290586,5.60687695,2086.7,2085.6,10.39366886]
[1770531290783,5.60687695,2086.7,2085.6,8.07502981]
[1770531290985,5.60687695,2086.7,2085.6,4.27924485]
[1770531291190,5.60687695,2086.7,2085.6,4.28298542]
[1770531291592,5.60687695,2086.7,2085.6,8.10932766]
[1770531292093,5.60687695,2086.7,2085.7,3.82634224]
[1770531292296,5.60687695,2086.7,2085.8,8.13364945]
[1770531292494,5.60687695,2086.7,2085.8,3.82634224]
[1770531292997,5.60687695,2086.7,2086.0,3.9544604]
[1770531293496,5.60687695,2086.7,2085.6,0.00374057]
[1770531293791,5.60687695,2086.7,2085.6,3.98780736]
[1770531293998,5.60687695,2086.7,2085.8,3.98406679]
[1770531294186,5.60687695,2086.7,2085.9,3.98406679]
[1770531294391,5.60687695,2086.7,2086.1,3.9640661]
[1770531294590,5.60687695,2086.7,2085.9,8.24331095]
[1770531294796,5.60687695,2086.7,2086.0,8.27516157]
[1770531294993,5.60687695,2086.7,2086.0,3.9640661]
[1770531295395,5.60687695,2086.7,2085.9,4.27924485]
[1770531295597,5.60687695,2086.7,2085.9,8.59259666]
[1770531295799,5.60687695,2086.7,2086.0,4.31335181]
[1770531295999,5.60687695,2086.7,2085.8,8.273754]
[1770531296198,5.60687695,2086.7,2085.9,12.58556604]
[1770531296413,5.60687695,2086.7,2086.0,4.31361378]
[1770531297808,5.60687695,2086.7,2086.0,8.48808054]
[1770531298013,5.60687695,2086.7,2086.0,4.17446676]
[1770531298311,5.60687695,2086.7,2086.0,8.45371161]
[1770531298501,5.60687695,2086.7,2086.1,4.32272261]
[1770531299106,5.60687695,2086.7,2086.1,8.5615263]
[1770531299412,5.60687695,2086.7,2086.2,12.84193797]
[1770531299606,5.60687695,2086.7,2086.3,8.59013768]
[1770531299804,5.60687695,2086.7,2086.3,4.26624825]
[1770531300207,5.60687695,2086.7,2086.3,8.5454931]
[1770531300504,5.60687695,2086.7,2086.4,4.32310048]
[1770531300703,5.60687695,2086.7,2086.3,8.53510814]
[1770531300910,5.60687695,2086.7,2086.4,4.32524069]
[1770531301111,5.60687695,2086.7,2086.3,4.27924485]
[1770531301306,5.74651054,2087.9,2086.5,5.1367285]
[1770531301307,5.60070917,2087.7,2086.5,5.1367285]
[1770531301506,5.60070917,2087.7,2086.5,10.06836187]
[1770531301714,5.60070917,2087.7,2086.5,5.74012624]
[1770531302011,8.46142024,2087.7,2086.4,5.73525136]
[1770531302308,5.60070917,2087.6,2086.4,5.73525136]
[1770531302912,5.60070917,2087.6,2086.1,12.91040917]
[1770531303106,2.86562882,2087.7,2085.9,10.55317692]
[1770531303107,5.60070917,2087.2,2085.9,5.73525136]
[1770531303410,5.60070917,2087.1,2085.9,5.73525136]
[1770531305310,5.60070917,2087.0,2085.9,5.73525136]
[1770531306312,5.60070917,2087.0,2085.8,7.17515781]
[1770531306608,6.79183002,2086.8,2085.6,13.93284086]
[1770531307315,6.79183002,2086.8,2085.6,6.75768305]
[1770531314218,6.79183002,2086.8,2085.7,6.91748619]
[1770531315117,6.79183002,2086.8,2085.8,6.91748619]
[1770531318116,6.79183002,2086.8,2085.9,6.91748619]
[1770531320320,6.79183002,2086.8,2086.1,6.91748619]
[1770531321918,6.79183002,2086.8,2086.1,12.64307303]
[1770531322622,6.79183002,2086.8,2086.1,5.72558684]
[1770531322824,6.79183002,2086.8,2086.0,5.72558684]
[1770531323420,6.79183002,2086.8,2085.8,5.72558684]
[1770531323421,7.02453169,2086.7,2085.8,5.72558684]
[1770531323622,2.86071107,2086.5,2085.3,11.42986364]
[1770531323918,3.59134782,2086.2,2085.3,6.91748619]
[1770531324123,3.59134782,2086.1,2085.3,6.91748619]
[1770531324823,3.59573475,2086.1,2085.3,6.92318934]
[1770531325017,3.59573475,2086.1,2085.3,0.00570315]
[1770531325421,3.59573475,2086.1,2085.0,6.91748619]
[1770531325422,4.34716211,2085.8,2085.0,6.91748619]
[1770531326324,4.34716211,2085.8,2085.0,6.92290085]
[1770531329422,4.34716211,2085.8,2085.1,6.91748619]
[1770531331825,4.56911487,2085.9,2085.1,6.91748619]
[1770531332823,4.56911487,2085.9,2085.0,6.92290085]
[1770531333822,4.56911487,2085.9,2085.0,0.00541466]
[1770531334023,4.56911487,2085.9,2085.0,6.92290085]
[1770531334724,4.56911487,2085.9,2084.9,6.91748619]
[1770531334930,4.77026532,2085.8,2084.9,6.91748619]
[1770531335627,4.77026532,2085.8,2084.9,6.92179642]
[1770531338626,4.8340996,2086.0,2084.9,6.92179642]
[1770531342130,4.8340996,2086.0,2085.0,7.8116655]
[1770531344326,5.09396516,2086.1,2085.1,7.8116655]
[1770531344733,0.00438693,2086.1,2085.2,7.8116655]
[1770531345030,0.00438693,2086.1,2085.3,7.8116655]
[1770531346127,5.0284814,2086.6,2085.5,7.8116655]
[1770531347127,5.03274152,2086.6,2085.5,7.8116655]
[1770531350334,5.03274152,2086.6,2085.6,7.8116655]
[1770531351336,5.03274152,2086.6,2085.7,7.8116655]
[1770531352540,5.32096931,2086.5,2085.7,7.8116655]
[1770531358239,5.39523184,2086.6,2085.8,7.8116655]
[1770531359844,0.00426012,2086.6,2085.9,6.25776731]
[1770531360149,0.0032324,2086.6,2086.0,7.8116655]
[1770531360347,5.50774628,2086.5,2085.5,7.8116655]
[1770531360648,5.50774628,2086.5,2085.3,4.28252182]
[1770531360649,5.51378107,2085.6,2084.6,7.8116655]
[1770531360941,7.85054516,2085.1,2084.2,7.8116655]
[1770531361145,7.85054516,2084.9,2084.0,7.8116655]
[1770531361741,10.7401534,2084.7,2084.0,0.00601511]
[1770531361941,7.87342722,2084.6,2083.8,7.8116655]
[1770531362142,7.87342722,2084.6,2083.6,7.8116655]
[1770531362941,7.87342722,2084.6,2083.6,0.00412216]
[1770531363143,7.31090981,2084.5,2083.6,0.00412216]
[1770531363347,7.31090981,2084.5,2083.6,7.81578766]
[1770531364151,42.91633676,2084.9,2083.6,7.81578766]
[1770531364152,7.34325143,2084.9,2083.6,7.81578766]
[1770531364649,0.00567068,2084.9,2083.8,7.8116655]
[1770531364840,0.00567068,2084.9,2083.8,10.67449495]
[1770531365045,0.00567068,2084.9,2084.0,7.8116655]
[1770531365546,7.61339014,2085.4,2084.2,7.8116655]
[1770531365739,2.86071107,2085.9,2084.2,7.8116655]
[1770531365740,7.65851332,2085.8,2084.2,7.8116655]
[1770531366146,7.65851332,2085.7,2084.2,7.8116655]
[1770531366349,7.66346298,2085.7,2084.2,7.8116655]
[1770531368347,8.32602275,2085.4,2083.8,8.4525395]
[1770531376153,8.32602275,2085.4,2083.9,6.14086598]
[1770531376458,8.32602275,2085.4,2084.0,8.37008001]
[1770531381163,8.32602275,2085.4,2084.2,8.37008001]
[1770531381961,8.32602275,2085.4,2084.3,6.23783736]
[1770531382156,8.32602275,2085.4,2084.4,8.37008001]
[1770531385070,8.38632807,2085.7,2084.5,6.14170619]
[1770531385269,8.38632807,2085.7,2084.6,8.37008001]
[1770531385466,0.00494966,2085.7,2084.6,8.37008001]
[1770531385771,0.00494966,2085.7,2084.8,8.37008001]
[1770531386272,0.00494966,2085.7,2085.0,8.37008001]
[1770531386474,8.40134302,2086.0,2085.0,8.37008001]
[1770531386674,8.48616183,2086.4,2085.0,8.37008001]
[1770531387274,8.48616183,2086.3,2085.0,8.37008001]
[1770531387578,8.49069303,2086.3,2085.0,8.37008001]
[1770531388177,8.49069303,2086.3,2085.1,8.37008001]
[1770531388380,8.49069303,2086.3,2085.1,8.37625833]
[1770531389678,0.96123635,2086.4,2085.1,8.37625833]
[1770531389983,5.72593424,2086.6,2085.1,8.37625833]
[1770531389984,7.71651517,2086.6,2085.8,8.37008001]
[1770531390777,7.72021124,2086.6,2085.8,8.37008001]
[1770531392279,0.00369607,2086.6,2085.8,8.37008001]
[1770531392474,7.38728403,2086.5,2085.8,8.37008001]
[1770531393572,10.229,2087.3,2085.8,8.37008001]
[1770531393778,7.40309681,2087.5,2086.3,8.37008001]